{"text_format":"1","workbook":"xlsx","n_sheets":4,"sheets":["Without","USD","Taka","All"],"not_rendered":{"charts":0,"images":0,"macros":1,"external_links":0,"defined_names":0,"comments":0,"pivot_tables":0},"unopened":[],"bounds":{"document_bytes":16777216,"sheet_cells":100000,"rows_first":2000,"rows_last":500,"rows_between":2000,"halvings":0,"cell_chars":16384,"cell_head_chars":4096},"cells_cut":0,"cells_raw":0,"read":"whole","date_system":"1900"}

{"sheet":"Without","index":0,"n_rows":9,"n_cols":3,"rows_kept":9,"cut":false,"hidden":false,"merged":[[1,1,1,2]]}
[]
[null,"Spelling Number without Currency"]
[]
[null,"Amount (Number)","Spell Out to Words"]
[null,5030.33,{"$f":"SpellNum(B5)","v":"Five Thousand Thirty  Point Three Three "}]
[null,1263738.5,{"$f":"SpellNum(B6)","v":"One Million Two Hundred Sixty Three Thousand Seven Hundred Thirty Eight Point Five  "}]
[null,24261.45,{"$f":"SpellNum(B7)","v":"Twenty Four Thousand Two Hundred Sixty One Point Four Five "}]
[null,368782.38,{"$f":"SpellNum(B8)","v":"Three Hundred Sixty Eight Thousand Seven Hundred Eighty Two Point Three Eight "}]
[null,95757.54,{"$f":"SpellNum(B9)","v":"Ninety Five Thousand Seven Hundred Fifty Seven Point Five Four "}]

{"sheet":"USD","index":1,"n_rows":9,"n_cols":3,"rows_kept":9,"cut":false,"hidden":false,"merged":[[1,1,1,2]]}
[]
[null,"Spelling Number in US Dollar"]
[]
[null,"Amount (Number)","Spell Out to Words"]
[null,5030.33,{"$f":"SpellNumUSD(B5)","v":"Five Thousand Thirty  Dollars and Thirty Three Cents"}]
[null,1263738.5,{"$f":"SpellNumUSD(B6)","v":"One Million Two Hundred Sixty Three Thousand Seven Hundred Thirty Eight Dollars and Fifty  Cents"}]
[null,24261.45,{"$f":"SpellNumUSD(B7)","v":"Twenty Four Thousand Two Hundred Sixty One Dollars and Forty Five Cents"}]
[null,368782.38,{"$f":"SpellNumUSD(B8)","v":"Three Hundred Sixty Eight Thousand Seven Hundred Eighty Two Dollars and Thirty Eight Cents"}]
[null,95757.54,{"$f":"SpellNumUSD(B9)","v":"Ninety Five Thousand Seven Hundred Fifty Seven Dollars and Fifty Four Cents"}]

{"sheet":"Taka","index":2,"n_rows":9,"n_cols":3,"rows_kept":9,"cut":false,"hidden":false,"merged":[[1,1,1,2]]}
[]
[null,"Spelling Number in Taka"]
[]
[null,"Amount (Number)","Spell Out to Words"]
[null,5030.33,{"$f":"ConvertNumberToWords(B5)","v":"Five Thousand Thirty Taka and Thirty Three Paisa"}]
[null,21163738.5,{"$f":"ConvertNumberToWords(B6)","v":"Two Crore Eleven Lakh Sixty Three Thousand Seven Hundred Thirty Eight Taka and Fifty Paisa"}]
[null,24261.45,{"$f":"ConvertNumberToWords(B7)","v":"Twenty Four Thousand Two Hundred Sixty One Taka and Forty Five Paisa"}]
[null,368782.38,{"$f":"ConvertNumberToWords(B8)","v":"Three Hundred Sixty Eight Thousand Seven Hundred Eighty Two Taka and Thirty Eight Paisa"}]
[null,95757.54,{"$f":"ConvertNumberToWords(B9)","v":"Ninety Five Thousand Seven Hundred Fifty Seven Taka and Fifty Four Paisa"}]

{"sheet":"All","index":3,"n_rows":14,"n_cols":4,"rows_kept":14,"cut":false,"hidden":false,"merged":[[1,1,1,3]]}
[]
[null,"Spelling Number with Other Currencies"]
[]
[null,"Amount","Currency","Spell Out to Words"]
[null,5030.33,"Riyal",{"$f":"SpellNumber(B5,C5)","v":"Five Thousand Thirty  Riyals and Thirty Three Halalas"}]
[null,1263738.5,"Dirham",{"$f":"SpellNumber(B6,C6)","v":"One Million Two Hundred Sixty Three Thousand Seven Hundred Thirty Eight Dirhams and Fifty  Fils"}]
[null,24261.45,"Pound",{"$f":"SpellNumber(B7,C7)","v":"Twenty Four Thousand Two Hundred Sixty One Pounds and Forty Five Pence"}]
[null,368782.38,"Euro",{"$f":"SpellNumber(B8,C8)","v":"Three Hundred Sixty Eight Thousand Seven Hundred Eighty Two Euros and Thirty Eight Cents"}]
[null,95757.54,"Yen",{"$f":"SpellNumber(B9,C9)","v":"Ninety Five Thousand Seven Hundred Fifty Seven Yens and Fifty Four Sens"}]
[null,758986.34,"Canadian Dollar",{"$f":"SpellNumber(B10,C10)","v":"Seven Hundred Fifty Eight Thousand Nine Hundred Eighty Six Canadian Dollars and Thirty Four Cents"}]
[null,74847.87,"Australian Dollar",{"$f":"SpellNumber(B11,C11)","v":"Seventy Four Thousand Eight Hundred Forty Seven Australian Dollars and Eighty Seven Cents"}]
[null,5363846.37,"Rand",{"$f":"SpellNumber(B12,C12)","v":"Five Million Three Hundred Sixty Three Thousand Eight Hundred Forty Six Rands and Thirty Seven Cents"}]
[null,19374.64,"Baht",{"$f":"SpellNumber(B13,C13)","v":"Nineteen Thousand Three Hundred Seventy Four Bahts and Sixty Four Satangs"}]
[null,34367.47,"Sri Lankan Rupee",{"$f":"SpellNumber(B14,C14)","v":"Thirty Four Thousand Three Hundred Sixty Seven Sri Lankan Rupees and Forty Seven Cents"}]